fUST/lending_fUST_20241215
["ID","MTS","AMOUNT","RATE_DAILY","PERIOD"]
[345373091,1734199841060,-500.0,0.00027945,7]
[345373092,1734199841070,-1985.74,0.00027945,7]
[345373093,1734199841080,-500.0,0.00027945,7]
[345373094,1734199841089,-500.0,0.00027945,7]
[345373095,1734199841098,-500.0,0.00027945,7]
[345373096,1734199841108,-500.0,0.00027945,7]
[345373097,1734199841117,-500.0,0.00027945,7]
[345373098,1734199841127,-500.0,0.00027945,7]
[345373099,1734199841137,-508.13006506,0.00027945,7]
[345373100,1734199841146,-500.0,0.00027945,7]
[345373101,1734199841156,-649.72447186,0.00027945,7]
[345373102,1734199841165,-500.0,0.00027945,7]
[345373103,1734199841175,-500.0,0.00027945,7]
[345373104,1734199841184,-500.0,0.00027945,7]
[345373105,1734199841194,-500.0,0.00027945,7]
[345373106,1734199841203,-500.0,0.00027945,7]
[345373107,1734199841212,-500.0,0.00027945,7]
[345373108,1734199841221,-500.0,0.00027945,7]
[345373109,1734199841231,-500.0,0.00027945,7]
[345373110,1734199841240,-500.0,0.00027945,7]
[345373111,1734199841249,-500.0,0.00027945,7]
[345373112,1734199841258,-500.0,0.00027945,7]
[345373113,1734199841267,-500.0,0.00027945,7]
[345373114,1734199841276,-500.0,0.00027945,7]
[345373115,1734199841285,-2395.94,0.00027945,7]
[345373116,1734199841296,-500.0,0.00027945,7]
[345373117,1734199841308,-500.0,0.00027945,7]
[345373118,1734199841317,-500.0,0.00027945,7]
[345373119,1734199841326,-500.0,0.00027945,7]
[345373120,1734199841335,-541.42124396,0.0002799,2]
[345373121,1734199841345,-420.0,0.0002818,2]
[345373122,1734199841355,-2955.59,0.00028218,7]
[345373123,1734199841364,-5287.5042574,0.00028218,2]
[345373124,1734199841374,-500.0,0.00028219,7]
[345373125,1734199841383,-1504.87,0.00028219,7]
[345373126,1734199841392,-487.16,0.00028219,7]
[345373127,1734199841401,-437.46,0.00028219,7]
[345373128,1734199841410,-828.84,0.00028219,7]
[345373129,1734199841419,-500.0,0.00028219,7]
[345373130,1734199841429,-500.0,0.00028219,7]
[345373131,1734199841438,-500.0,0.00028219,7]
[345373132,1734199841447,-500.0,0.00028219,7]
[345373133,1734199841457,-309.57,0.00028219,7]
[345373134,1734199841466,-500.0,0.00028219,7]
[345373135,1734199841475,-500.0,0.00028219,7]
[345373136,1734199841484,-500.0,0.00028219,7]
[345373137,1734199841494,-216.8472873,0.00028219,7]
[345373138,1734199841505,-196.58,0.00028219,7]
[345373139,1734199841514,-529.3,0.00028219,7]
[345373140,1734199841523,-245.6,0.00028219,7]
[345373141,1734199841531,-251.38,0.00028219,7]
[345373142,1734199841540,-500.0,0.00028219,7]
[345373143,1734199841553,-352.7,0.00028219,7]
[345373144,1734199841565,-500.0,0.00028219,7]
[345373145,1734199841575,-500.0,0.00028219,7]
[345373146,1734199841583,-500.0,0.00028219,7]
[345373147,1734199841593,-3953.07,0.00028219,7]
[345373148,1734199841602,-620.58380604,0.00028219,7]
[345373149,1734199841612,-500.0,0.00028219,7]
[345373150,1734199841621,-523.84,0.00028219,7]
[345373151,1734199841632,-586.26,0.00028219,7]
[345373152,1734199841641,-195.28468625,0.00028219,7]
[345373153,1734199841650,-582.04,0.00028219,7]
[345373154,1734199841659,-500.0,0.00028219,7]
[345373155,1734199841668,-500.0,0.00028219,7]
[345373156,1734199841678,-500.0,0.00028219,7]
[345373157,1734199841688,-500.0,0.00028219,7]
[345373158,1734199841697,-549.44,0.00028219,7]
[345373159,1734199841706,-500.0,0.00028219,7]
[345373160,1734199841716,-500.0,0.00028219,7]
[345373161,1734199841725,-500.0,0.00028219,7]
[345373162,1734199841734,-500.0,0.00028219,7]
[345373163,1734199841743,-500.0,0.00028219,7]
[345373164,1734199841752,-500.0,0.00028219,7]
[345373165,1734199841761,-500.0,0.00028219,7]
[345373166,1734199841770,-500.0,0.00028219,7]
[345373167,1734199841779,-1341.45,0.00028219,7]
[345373168,1734199841788,-150.76,0.00028219,7]
[345373169,1734199841799,-500.0,0.00028219,7]
[345373170,1734199841808,-500.0,0.00028219,7]
[345373171,1734199841818,-500.0,0.00028219,7]
[345373172,1734199841837,-351.0,0.00028219,7]
[345373173,1734199841846,-500.0,0.00028219,7]
[345373174,1734199841856,-500.0,0.00028219,7]
[345373175,1734199841865,-500.0,0.00028219,7]
[345373176,1734199841874,-500.0,0.00028219,7]
[345373177,1734199841883,-255.75,0.00028219,7]
[345373178,1734199841894,-500.0,0.00028219,7]
[345373179,1734199841903,-524.36,0.00028219,7]
[345373180,1734199841913,-504.01884085,0.00028219,7]
[345373181,1734199841923,-500.0,0.00028219,7]
[345373182,1734199841932,-636.21671875,0.00028219,7]
[345373183,1734199841942,-500.0,0.00028219,7]
[345373184,1734199841951,-620.19,0.00028219,7]
[345373185,1734199841962,-500.0,0.00028219,7]
[345373186,1734199841972,-500.0,0.00028219,7]
[345373187,1734199841981,-500.0,0.00028219,7]
[345373188,1734199841990,-500.0,0.00028219,7]
[345373189,1734199842000,-500.0,0.00028219,7]
[345373190,1734199842011,-500.0,0.00028219,7]
[345373191,1734199842021,-502.7462003,0.00028219,7]
[345373192,1734199842030,-151.47,0.00028219,7]
[345373193,1734199842040,-500.0,0.00028219,7]
[345373194,1734199842052,-2187.0,0.00028219,7]
[345373195,1734199842062,-500.0,0.00028219,7]
[345373196,1734199842071,-500.0,0.00028219,7]
[345373197,1734199842081,-555.45057836,0.00028219,7]
[345373198,1734199842090,-1892.55,0.00028219,7]
[345373199,1734199842099,-500.0,0.00028219,7]
[345373200,1734199842109,-500.0,0.00028219,7]
[345373201,1734199842120,-308.49674049,0.00028219,7]
[345373202,1734199842203,-500.0,0.00027397,7]
[345373203,1734199842213,-500.0,0.00027671,7]
[345373204,1734199842223,-500.0,0.00027945,7]
[345373205,1734199842233,-500.0,0.00027945,7]
[345373206,1734199842242,-191.50325951,0.00028219,7]
[345373207,1734199842252,-504.43373286,0.00028219,7]
[345373208,1734199842262,-500.0,0.00028219,7]
[345373209,1734199842272,-500.0,0.00028219,7]
[345373210,1734199842281,-153.36300763,0.00028219,7]
[345373245,1734199846058,-500.0,0.00027397,7]
[345373247,1734199846068,-500.0,0.00027397,7]
[345373249,1734199846077,-500.0,0.00027397,7]
[345373251,1734199846087,-500.0,0.00027397,7]
[345373253,1734199846096,-500.0,0.00027671,7]
[345373255,1734199846106,-500.0,0.00027671,7]
[345373257,1734199846116,-500.0,0.00027671,7]
[345373259,1734199846125,-500.0,0.00027945,7]
[345373261,1734199846135,-227.32,0.00027945,7]
[345373263,1734199846144,-500.0,0.00027945,7]
[345373265,1734199846154,-348.66080442,0.00028219,7]
[345373267,1734199846164,-500.0,0.00028219,7]
[345373269,1734199846174,-500.0,0.00028219,7]
[345373271,1734199846184,-500.0,0.00028219,7]
[345373273,1734199846193,-500.0,0.00028219,7]
[345373274,1734199846203,-1985.74,0.00028219,7]
[345373276,1734199846213,-500.0,0.00028219,7]
[345373278,1734199846223,-500.0,0.00028219,7]
[345373281,1734199846234,-299.6709483,0.00028219,7]
[345373283,1734199846243,-486.51,0.00028219,7]
[345373284,1734199846252,-593.72219152,0.00028219,7]
[345373286,1734199846262,-500.0,0.00028219,7]
[345373289,1734199846273,-500.0,0.00028219,7]
[345373291,1734199846283,-500.0,0.00028219,7]
[345373293,1734199846293,-500.0,0.00028219,7]
[345373295,1734199846310,-500.06777896,0.00028219,7]
[345373297,1734199846321,-500.0,0.00028219,7]
[345373299,1734199846331,-500.0,0.00028219,7]
[345373301,1734199846340,-502.10019804,0.00028219,7]
[345373303,1734199846350,-500.0,0.00028219,7]
[345373305,1734199846360,-500.0,0.00028219,7]
[345373307,1734199846370,-502.53788804,0.00028219,7]
[345373309,1734199846379,-506.0339989,0.00028219,7]
[345373311,1734199846389,-450.18,0.00028219,7]
[345373313,1734199846399,-2395.94,0.00028219,7]
[345373315,1734199846408,-500.0,0.00028219,7]
[345373317,1734199846417,-500.0,0.00028219,7]
[345373319,1734199846426,-500.0,0.00028219,7]
[345373321,1734199846435,-500.0,0.00028219,7]
[345373323,1734199846445,-500.0,0.00028219,7]
[345373325,1734199846454,-500.0,0.00028219,7]
[345373327,1734199846464,-425.73187276,0.00028317,5]
[345373329,1734199846473,-611.08271465,0.00028353,2]
[345373331,1734199846483,-2955.59,0.00028492,7]
[345373333,1734199846492,-500.0,0.00028493,7]
[345373335,1734199846502,-828.84,0.00028493,7]
[345373337,1734199846511,-500.0,0.00028493,7]
[345373339,1734199846521,-500.0,0.00028493,7]
[345373341,1734199846530,-583.6,0.00028493,7]
[345373343,1734199846539,-248.77,0.00028493,7]
[345373345,1734199846553,-604.58,0.00028493,7]
[345373347,1734199846568,-500.0,0.00028493,7]
[345373349,1734199846580,-500.0,0.00028493,7]
[345373351,1734199846589,-500.0,0.00028493,7]
[345373353,1734199846601,-500.0,0.00028493,7]
[345373355,1734199846610,-558.9,0.00028493,7]
[345373356,1734199846619,-500.0,0.00028493,7]
[345373359,1734199846629,-420.35990486,0.00028493,7]
[345373360,1734199846639,-500.0,0.00028493,7]
[345373363,1734199846648,-500.0,0.00028493,7]
[345373365,1734199846659,-500.0,0.00028493,7]
[345373367,1734199846668,-500.0,0.00028493,7]
[345373369,1734199846678,-500.0,0.00028493,7]
[345373371,1734199846687,-158.56,0.00028493,7]
[345373372,1734199846697,-496.58268624,0.00028493,7]
[345373374,1734199846709,-500.0,0.00028493,7]
[345373376,1734199846718,-500.0,0.00028493,7]
[345373379,1734199846728,-1341.45,0.00028493,7]
[345373381,1734199846738,-500.0,0.00028493,7]
[345373383,1734199846748,-500.0,0.00028493,7]
[345373384,1734199846758,-500.0,0.00028493,7]
[345373385,1734199846768,-107.39043916,0.00028493,7]
[345373386,1734199846785,-500.0,0.00027671,7]
[345373388,1734199846794,-392.60956084,0.00028493,7]
[345373390,1734199846807,-516.96,0.00028493,7]
[345373392,1734199846816,-251.98,0.00028493,7]
[345373394,1734199846825,-233.86187609,0.00028493,7]
[345373396,1734199846834,-500.0,0.00028493,7]
[345373398,1734199846843,-262.0,0.00028493,7]
[345373400,1734199846852,-500.0,0.00028493,7]
[345373402,1734199846862,-620.19,0.00028493,7]
[345373404,1734199846872,-500.0,0.00028493,7]
[345373406,1734199846882,-500.0,0.00028493,7]
[345373408,1734199846891,-343.15,0.00028493,7]
[345373410,1734199846900,-500.0,0.00028493,7]
[345373412,1734199846910,-500.0,0.00028493,7]
[345373414,1734199846921,-500.0,0.00028493,7]
[345373416,1734199846930,-2187.0,0.00028493,7]
[345373418,1734199846940,-500.0,0.00028493,7]
[345373420,1734199846950,-1892.55,0.00028493,7]
[345373422,1734199846960,-500.0,0.00028493,7]
[345373424,1734199846973,-327.76073531,0.00028493,7]
[345373426,1734199846982,-500.0,0.00028493,7]
[345373428,1734199846992,-225.7,0.00028493,7]
[345373430,1734199847002,-500.0,0.00028493,7]
[345373432,1734199847011,-277.00059351,0.00028493,7]
[345373434,1734199847021,-1985.74,0.00028493,7]
[345373436,1734199847030,-554.53,0.00028493,7]
[345373438,1734199847039,-500.0,0.00028493,7]
[345373440,1734199847049,-500.0,0.00028493,7]
[345373442,1734199847059,-278.37183919,0.00028493,7]
[345373444,1734199847069,-278.38,0.00028493,7]
[345373446,1734199847078,-231.8362538,0.00028493,7]
[345373448,1734199847087,-500.0,0.00028493,7]
[345373450,1734199847096,-1852.37914126,0.00028493,7]
[345373864,1734199872430,159.046597,0.00013973,2]
[345373868,1734200360787,1002.5,0.00015,2]
[345373934,1734200885937,159.286669,0.00013973,2]
[345373939,1734200918520,1345.94275971,0.00025,120]
[345373940,1734200918912,16012.65784445,0.0001999,2]
[345373941,1734200919005,352.6994074,0.0002,2]
[345373951,1734200921792,1000.0,0.0001,2]
[345373980,1734201032389,-159.286669,0.00021661,2]
[345373981,1734201032399,-300.0,0.00021999,2]
[345373982,1734201032409,-300.0,0.00021999,2]
[345373983,1734201032418,-49.61523049,0.00022,2]
[345374213,1734201040489,-15751.15054601,0.00022,2]
[345374215,1734201040499,-831.42285529,0.0002201,16]
[345374217,1734201040508,-420.0,0.00023906,2]
[345374219,1734201040518,-420.0,0.00024199,2]
[345374221,1734201040528,-6888.18825497,0.00025603,120]
[345374223,1734201040537,-587.0,0.00025977,2]
[345374225,1734201040546,-160.66811514,0.00025999,2]
[345374227,1734201040556,-229.57022859,0.00025999,2]
[345374600,1734201046537,-43.523934,0.00025999,2]
[345374601,1734201046547,-500.0,0.00025999,2]
[345374602,1734201046556,-500.0,0.00025999,2]
[345374603,1734201046566,-207.65908669,0.00025999,2]
[345374604,1734201046575,-35691.61855805,0.00026,30]
[345374605,1734201057091,542.65971981,0.00020192,15]
[345374606,1734201057121,640.55708419,0.00020192,15]
[345374611,1734201842961,159.526741,0.00013973,2]
[345374661,1734202232588,-159.526741,0.00022174,2]
[345374663,1734202232598,-166.864766,0.00024582,2]
[345374665,1734202232608,-179.94586612,0.00024701,2]
[345374667,1734202232619,-35.64663648,0.00024701,2]
[345374669,1734202232629,-175.508,0.00024999,8]
[345374671,1734202232638,-300.0,0.00024999,2]
[345374673,1734202232648,-2621.60996034,0.00025,2]
[345374675,1734202232659,-16276.89003866,0.00025,2]
[345374677,1734202232668,-166.864766,0.00025795,2]
[345374679,1734202232678,-446.33317473,0.000259,2]
[345374681,1734202232687,-640.73507012,0.000259,2]
[345374682,1734202232696,-527.31365319,0.00025999,2]
[345374685,1734202232706,-186.45011274,0.00025999,2]
[345374686,1734202232715,-222.06748294,0.00025999,2]
[345374688,1734202232724,-22019.82363076,0.00026,2]
[345374690,1734202232739,-372.14706741,0.00026,2]
[345374693,1734202232748,-26999.55582181,0.00026,30]
[345374695,1734202232761,-4608.00000003,0.00026,30]
[345374721,1734202238595,-407728.03866996,0.00026,30]
[345374722,1734202238606,-14196.75794876,0.00026,4]
[345374723,1734202238615,-642.6,0.00026,14]
[345374724,1734202238625,-13351.5,0.00026,2]
[345374725,1734202238635,-163.489293,0.00026,30]
[345374726,1734202238644,-640.7350701,0.00026082,2]
[345374727,1734202238653,-640.7350701,0.00026264,2]
[345374728,1734202238663,-640.7350701,0.00026445,2]
[345374729,1734202238672,-446.33317472,0.00026507,2]
[345374730,1734202238681,-640.7350701,0.00026627,2]
[345374732,1734202238691,-420.40866247,0.00026661,2]
[345374734,1734202238700,-503.8925272,0.00026673,2]
[345374736,1734202238709,-500.0,0.00026673,2]
[345374738,1734202238718,-500.0,0.00026673,2]
[345374740,1734202238728,-558.71195404,0.00026673,2]
[345374742,1734202238739,-151.0,0.000267,12]
[345374744,1734202238749,-390093.52989461,0.000267,7]
[345374746,1734202238758,-169.851757,0.00026727,2]
[345374748,1734202238767,-151.0,0.000268,14]
[345374750,1734202238776,-151.0,0.000268,18]
[345374752,1734202238786,-397.755,0.0002693,2]
[345374753,1734202238795,-500.0,0.00027,30]
[345374755,1734202238804,-557.71156627,0.00027,30]
[345374757,1734202238814,-800.0,0.00027,30]
[345374759,1734202238823,-800.0,0.00027,30]
[345374761,1734202238832,-800.0,0.00027,30]
[345374763,1734202238841,-800.0,0.00027,30]
[345374764,1734202238851,-500.0,0.00027,30]
[345374765,1734202238860,-800.0,0.00027,30]
[345374766,1734202238869,-500.0,0.00027,30]
[345374767,1734202238878,-800.0,0.00027,30]
[345374768,1734202238887,-500.0,0.00027,30]
[345374769,1734202238896,-800.0,0.00027,30]
[345374770,1734202238906,-500.0,0.00027,30]
[345374771,1734202238915,-800.0,0.00027,30]
[345374772,1734202238924,-500.0,0.00027,30]
[345374773,1734202238933,-800.0,0.00027,30]
[345374774,1734202238943,-500.0,0.00027,30]
[345374775,1734202238952,-800.0,0.00027,30]
[345374776,1734202238961,-500.0,0.00027,30]
[345374777,1734202238970,-800.0,0.00027,30]
[345374778,1734202238980,-500.0,0.00027,30]
[345374779,1734202238992,-800.0,0.00027,30]
[345374780,1734202239002,-500.0,0.00027,30]
[345374781,1734202239011,-800.0,0.00027,30]
[345374782,1734202239020,-500.0,0.00027,30]
[345374783,1734202239030,-1000.0,0.00027,30]
[345374784,1734202239039,-500.0,0.00027,30]
[345374785,1734202239048,-671.25947392,0.00027,30]
[345374786,1734202239058,-500.0,0.00027,30]
[345374787,1734202239067,-500.0,0.00027,30]
[345374788,1734202239078,-500.0,0.00027,30]
[345374789,1734202239088,-500.0,0.00027,30]
[345374790,1734202239097,-500.0,0.00027,30]
[345374791,1734202239106,-500.0,0.00027,30]
[345374792,1734202239115,-500.0,0.00027,30]
[345374793,1734202239124,-500.0,0.00027,30]
[345374794,1734202239133,-500.0,0.00027,30]
[345374795,1734202239142,-500.0,0.00027,30]
[345374796,1734202239152,-500.0,0.00027,30]
[345374797,1734202239161,-671.25947392,0.00027,30]
[345374798,1734202239169,-500.0,0.00027,30]
[345374799,1734202239179,-500.0,0.00027,30]
[345374800,1734202239188,-500.0,0.00027,30]
[345374801,1734202239272,-500.0,0.00027,30]
[345374802,1734202239282,-500.0,0.00027,30]
[345374803,1734202239291,-957.48105216,0.00027,30]
[345374804,1734202239301,-151.0,0.00027,15]
[345374805,1734202239310,-151.0,0.00027,13]
[345374806,1734202239319,-166.864766,0.00027008,2]
[345374807,1734202239328,-151.0,0.000271,16]
[345374808,1734202239338,-446.33317472,0.00027115,2]
[345374809,1734202239347,-151.0,0.000272,12]
[345374810,1734202239356,-1000.0,0.00027221,2]
[345374811,1734202239366,-1007.80270568,0.00027221,2]
[345374812,1734202239375,-151.0,0.000273,16]
[345374813,1734202239385,-151.0,0.000273,17]
[345374814,1734202239394,-500.59870951,0.00027373,2]
[345374815,1734202239404,-500.88753932,0.00027373,2]
[345374816,1734202239413,-500.0,0.00027373,2]
[345374817,1734202239422,-502.49103571,0.00027373,2]
[345374818,1734202239432,-178.87726942,0.00027373,2]
[345374819,1734202239441,-501.60659044,0.00027373,2]
[345374820,1734202239450,-500.0,0.00027373,2]
[345374821,1734202239459,-502.05033448,0.00027373,2]
[345374822,1734202239468,-500.0,0.00027397,7]
[345374823,1734202239477,-495.0345511,0.00027397,7]
[345374824,1734202239486,-504.57856516,0.00027397,7]
[345374825,1734202239504,-514.78,0.00027397,7]
[345374826,1734202239513,-500.0,0.00027397,7]
[345374827,1734202239523,-597.15570755,0.00027397,7]
[345374828,1734202239534,-1000.0,0.00027397,7]
[345374829,1734202239544,-500.0,0.00027397,7]
[345374830,1734202239553,-500.0,0.00027397,7]
[345374831,1734202239562,-500.0,0.00027397,7]
[345374832,1734202239571,-500.0,0.00027397,7]
[345374833,1734202239580,-500.0,0.00027397,7]
[345374834,1734202239590,-500.0,0.00027397,7]
[345374835,1734202239600,-500.0,0.00027397,7]
[345374836,1734202239609,-500.0,0.00027397,7]
[345374837,1734202239619,-500.0,0.00027397,7]
[345374838,1734202239628,-500.0,0.00027397,7]
[345374839,1734202239637,-500.0,0.00027397,7]
[345374840,1734202239647,-500.0,0.00027397,7]
[345374841,1734202239655,-500.0,0.00027397,7]
[345374842,1734202239665,-500.0,0.00027397,7]
[345374843,1734202239674,-500.0,0.00027397,7]
[345374844,1734202239683,-500.0,0.00027397,7]
[345374845,1734202239693,-500.0,0.00027397,7]
[345374846,1734202239702,-500.0,0.00027397,7]
[345374847,1734202239711,-500.0,0.00027397,7]
[345374848,1734202239720,-500.0,0.00027397,7]
[345374849,1734202239729,-500.0,0.00027397,7]
[345374850,1734202239743,-500.0,0.00027397,7]
[345374851,1734202239752,-500.0,0.00027397,7]
[345374852,1734202239761,-500.0,0.00027397,7]
[345374853,1734202239770,-500.0,0.00027397,7]
[345374854,1734202239779,-500.0,0.00027397,7]
[345374855,1734202239788,-500.0,0.00027397,7]
[345374856,1734202239798,-500.0,0.00027397,7]
[345374857,1734202239807,-500.0,0.00027397,7]
[345374858,1734202239817,-500.0,0.00027397,7]
[345374859,1734202239826,-500.0,0.00027397,7]
[345374860,1734202239835,-500.0,0.00027397,7]
[345374861,1734202239844,-500.0,0.00027397,7]
[345374862,1734202239853,-500.0,0.00027397,7]
[345374863,1734202239863,-500.0,0.00027397,7]
[345374864,1734202239872,-500.0,0.00027397,7]
[345374865,1734202239881,-500.0,0.00027397,7]
[345374866,1734202239891,-500.0,0.00027397,7]
[345374867,1734202239900,-500.0,0.00027397,7]
[345374868,1734202239910,-500.0,0.00027397,7]
[345374869,1734202239919,-500.0,0.00027397,7]
[345374870,1734202239928,-500.0,0.00027397,7]
[345374871,1734202239937,-500.0,0.00027397,7]
[345374872,1734202239946,-500.0,0.00027397,7]
[345374873,1734202239956,-1207.81,0.00027397,7]
[345374874,1734202239965,-500.0,0.00027397,7]
[345374875,1734202239974,-500.0,0.00027397,7]
[345374876,1734202239983,-500.0,0.00027397,7]
[345374878,1734202239998,-500.0,0.00027397,7]
[345374879,1734202240007,-500.0,0.00027397,7]
[345374880,1734202240016,-500.0,0.00027397,7]
[345374881,1734202240026,-500.0,0.00027397,7]
[345374882,1734202240035,-500.0,0.00027397,7]
[345374884,1734202240044,-500.0,0.00027397,7]
[345374885,1734202240054,-500.0,0.00027397,7]
[345374887,1734202240063,-500.0,0.00027397,7]
[345374888,1734202240073,-500.0,0.00027397,7]
[345374889,1734202240083,-500.0,0.00027397,7]
[345374890,1734202240092,-500.0,0.00027397,7]
[345374891,1734202240103,-500.0,0.00027397,7]
[345374892,1734202240115,-500.0,0.00027397,7]
[345374893,1734202240125,-500.0,0.00027397,7]
[345374894,1734202240136,-500.0,0.00027397,7]
[345374895,1734202240145,-500.0,0.00027397,7]
[345374896,1734202240154,-500.0,0.00027397,7]
[345374897,1734202240164,-500.0,0.00027397,7]
[345374898,1734202240173,-500.0,0.00027397,7]
[345374899,1734202240183,-500.0,0.00027397,7]
[345374900,1734202240192,-500.0,0.00027397,7]
[345374901,1734202240202,-500.0,0.00027397,7]
[345374902,1734202240211,-500.0,0.00027397,7]
[345374903,1734202240221,-279.6654907,0.00027397,7]
[345374905,1734202240230,-500.0,0.00027397,7]
[345374907,1734202240242,-500.0,0.00027397,7]
[345374909,1734202240251,-500.0,0.00027397,7]
[345374911,1734202240260,-500.0,0.00027397,7]
[345374913,1734202240270,-500.0,0.00027397,7]
[345374914,1734202240279,-500.0,0.00027397,7]
[345374916,1734202240288,-500.0,0.00027397,7]
[345374918,1734202240297,-500.0,0.00027397,7]
[345374920,1734202240306,-628.50054886,0.00027397,7]
[345374928,1734202240373,-500.0,0.00027397,7]
[345374930,1734202240383,-500.0,0.00027397,7]
[345374932,1734202240393,-500.0,0.00027397,7]
[345374934,1734202240403,-500.0,0.00027397,7]
[345374936,1734202240412,-500.0,0.00027397,7]
[345374938,1734202240423,-500.0,0.00027397,7]
[345374940,1734202240440,-500.0,0.00027397,7]
[345374942,1734202240449,-500.0,0.00027397,7]
[345374944,1734202240458,-500.0,0.00027397,7]
[345374946,1734202240467,-500.0,0.00027397,7]
[345374948,1734202240478,-500.0,0.00027397,7]
[345374950,1734202240489,-500.0,0.00027397,7]
[345374952,1734202240500,-500.0,0.00027397,7]
[345374954,1734202240509,-500.0,0.00027397,7]
[345374956,1734202240518,-500.0,0.00027397,7]
[345374958,1734202240527,-500.0,0.00027397,7]
[345374960,1734202240536,-500.0,0.00027397,7]
[345374962,1734202240547,-500.0,0.00027397,7]
[345374965,1734202240563,-500.0,0.00027397,7]
[345374967,1734202240579,-500.0,0.00027397,7]
[345374970,1734202240591,-180.45698995,0.00027397,7]
[345374972,1734202240602,-500.0,0.00027397,7]
[345374974,1734202240612,-500.0,0.00027397,7]
[345374976,1734202240623,-515.49271159,0.00027397,7]
[345374978,1734202240634,-500.0,0.00027397,7]
[345374980,1734202240644,-501.42267224,0.00027397,7]
[345374982,1734202240654,-151.0,0.00027397,7]
[345374984,1734202240664,-500.0,0.00027397,7]
[345374986,1734202240675,-500.0,0.00027397,7]
[345374988,1734202240684,-500.0,0.00027397,7]
[345374990,1734202240694,-500.0,0.00027397,7]
[345374992,1734202240704,-500.0,0.00027397,7]
[345374994,1734202240714,-500.0,0.00027397,7]
[345374996,1734202240724,-500.0,0.00027397,7]
[345374998,1734202240734,-500.0,0.00027397,7]
[345375000,1734202240749,-500.0,0.00027397,7]
[345375002,1734202240759,-500.0,0.00027397,7]
[345375004,1734202240768,-500.0,0.00027397,7]
[345375006,1734202240778,-500.0,0.00027397,7]
[345375009,1734202240789,-500.0,0.00027397,7]
[345375011,1734202240799,-500.0,0.00027397,7]
[345375013,1734202240808,-500.0,0.00027397,7]
[345375015,1734202240818,-500.0,0.00027397,7]
[345375017,1734202240828,-500.0,0.00027397,7]
[345375019,1734202240838,-501.96013871,0.00027397,7]
[345375021,1734202240848,-500.0,0.00027397,7]
[345375023,1734202240858,-500.0,0.00027397,7]
[345375025,1734202240867,-500.0,0.00027397,7]
[345375027,1734202240878,-500.0,0.00027397,7]
[345375029,1734202240888,-500.0,0.00027397,7]
[345375031,1734202240898,-507.34547055,0.00027397,7]
[345375033,1734202240907,-500.0,0.00027397,7]
[345375035,1734202240917,-500.0,0.00027397,7]
[345375037,1734202240926,-500.0,0.00027397,7]
[345375039,1734202240936,-500.0,0.00027397,7]
[345375041,1734202240946,-500.0,0.00027397,7]
[345375044,1734202240956,-656.16,0.00027397,7]